bitfinex-derivatives/quotes_BTCF0:USTF0_20250209
["timestamp","ask_amount","ask_price","bid_price","bid_amount"]
[1739059201916,0.05153611,96500.0,96499.0,0.3788]
[1739059202319,0.00115545,96500.0,96499.0,0.3698]
[1739059202622,0.00015545,96500.0,96499.0,0.003]
[1739059203623,0.00015545,96500.0,96499.0,0.3638]
[1739059207828,0.00015545,96500.0,96499.0,0.3658]
[1739059208827,0.00015545,96500.0,96499.0,0.3668]
[1739059209324,0.00015545,96500.0,96499.0,0.3638]
[1739059209528,0.00015545,96500.0,96499.0,0.3668]
[1739059210330,0.00015545,96500.0,96499.0,0.3638]
[1739059210522,0.00015545,96500.0,96499.0,0.3658]
[1739059212725,0.14492578,96511.0,96499.0,0.3658]
[1739059212922,0.09476177,96511.0,96510.0,0.3608]
[1739059213122,0.03007121,96524.0,96510.0,0.3608]
[1739059213530,0.03007121,96524.0,96522.0,0.3608]
[1739059214134,0.03007121,96524.0,96523.0,0.0312]
[1739059214333,0.03007121,96524.0,96523.0,0.0633]
[1739059214534,0.03007121,96524.0,96523.0,0.13026]
[1739059214837,0.03607121,96524.0,96523.0,0.13026]
[1739059215025,0.01337076,96524.0,96523.0,0.13026]
[1739059215222,0.01437076,96524.0,96523.0,0.13026]
[1739059216028,0.01337076,96524.0,96523.0,0.13126]
[1739059216729,0.00737076,96524.0,96523.0,0.13126]
[1739059216932,0.01037076,96524.0,96523.0,0.13126]
[1739059217434,0.00015545,96527.0,96523.0,0.13126]
[1739059217641,0.00015545,96527.0,96526.0,0.3608]
[1739059219127,0.2504,96547.0,96526.0,0.3608]
[1739059219437,0.2504,96547.0,96540.0,0.3608]
[1739059219742,0.2504,96547.0,96541.0,0.06728]
[1739059220939,0.2504,96547.0,96540.0,0.3608]
[1739059221130,0.2504,96547.0,96534.0,0.00015545]
[1739059221131,0.3608,96541.0,96534.0,0.00015545]
[1739059221343,0.3608,96541.0,96534.0,0.01074436]
[1739059221539,0.3608,96541.0,96534.0,0.00015545]
[1739059222440,0.3648,96541.0,96534.0,0.00015545]
[1739059222743,0.004,96541.0,96534.0,0.00015545]
[1739059224936,0.3608,96540.0,96534.0,0.00015545]
[1739059225137,0.0308,96539.0,96534.0,0.00015545]
[1739059226537,0.251,96539.0,96534.0,0.00015545]
[1739059226940,0.255,96539.0,96534.0,0.00015545]
[1739059227438,0.252,96539.0,96534.0,0.00015545]
[1739059227647,0.255,96539.0,96534.0,0.00015545]
[1739059228531,0.3608,96538.0,96534.0,0.00015545]
[1739059229239,0.3708,96538.0,96534.0,0.00015545]
[1739059229440,0.3608,96538.0,96534.0,0.00015545]
[1739059229641,0.3708,96538.0,96534.0,0.00015545]
[1739059230847,0.3718,96538.0,96534.0,0.00015545]
[1739059231452,0.3748,96538.0,96534.0,0.00015545]
[1739059232450,0.2202,96537.0,96534.0,0.00015545]
[1739059232650,0.2402,96537.0,96534.0,0.00015545]
[1739059233647,0.3608,96535.0,96534.0,0.00015545]
[1739059233845,0.3808,96535.0,96534.0,0.00015545]
[1739059234941,0.3818,96535.0,96534.0,0.00015545]
[1739059235243,0.3848,96535.0,96534.0,0.00015545]
[1739059235637,0.905,96535.0,96534.0,0.00015545]
[1739059235840,0.985,96535.0,96534.0,0.00015545]
[1739059236033,0.975,96535.0,96534.0,0.00015545]
[1739059238253,0.885,96535.0,96534.0,0.00015545]
[1739059238443,0.965,96535.0,96534.0,0.00015545]
[1739059238638,0.995,96535.0,96534.0,0.00015545]
[1739059238844,1.3558,96535.0,96534.0,0.00015545]
[1739059241955,1.0228,96535.0,96534.0,0.00015545]
[1739059242143,1.0148,96535.0,96534.0,0.00015545]
[1739059242843,1.0168,96535.0,96534.0,0.00015545]
[1739059243043,1.3148,96535.0,96534.0,0.00015545]
[1739059243252,1.3278,96535.0,96534.0,0.00015545]
[1739059243757,1.0278,96535.0,96534.0,0.00015545]
[1739059244258,1.0308,96535.0,96534.0,0.00115545]
[1739059244756,1.0368,96535.0,96534.0,0.00215545]
[1739059245148,0.3152,96535.0,96534.0,0.00215545]
[1739059245453,1.0368,96535.0,96534.0,0.00215545]
[1739059245654,1.04995,96535.0,96534.0,0.00215545]
[1739059245856,0.32835,96535.0,96534.0,0.00215545]
[1739059246052,1.04995,96535.0,96534.0,0.00215545]
[1739059246253,1.34995,96535.0,96534.0,0.00215545]
[1739059246455,1.26995,96535.0,96534.0,0.00215545]
[1739059246655,0.54835,96535.0,96534.0,0.00215545]
[1739059246855,1.26995,96535.0,96534.0,0.00215545]
[1739059251758,0.96995,96535.0,96534.0,0.00215545]
[1739059251964,1.02033004,96535.0,96534.0,0.00215545]
[1739059253052,1.32033004,96535.0,96534.0,0.00215545]
[1739059253249,1.52748084,96535.0,96534.0,0.00215545]
[1739059257366,1.62643199,96535.0,96534.0,0.00215545]
[1739059261655,1.74350621,96535.0,96534.0,0.00215545]
[1739059261964,1.74350621,96535.0,96534.0,0.00078705]
[1739059263566,1.62643199,96535.0,96534.0,0.00078705]
[1739059264859,0.20717,96526.0,96525.0,0.00015545]
[1739059265067,0.85525,96526.0,96525.0,0.00015545]
[1739059265267,1.15525,96526.0,96525.0,0.00015545]
[1739059266273,1.17789,96526.0,96525.0,0.00015545]
[1739059266661,1.18589,96526.0,96525.0,0.00015545]
[1739059269464,1.17689,96526.0,96525.0,0.00015545]
[1739059269673,1.18589,96526.0,96525.0,0.00115545]
[1739059269871,1.17789,96526.0,96525.0,0.00115545]
[1739059270075,1.18689,96526.0,96525.0,0.00115545]
[1739059270573,1.33622119,96526.0,96525.0,0.00115545]
[1739059271476,1.34653242,96526.0,96525.0,0.00115545]
[1739059272279,1.04653242,96526.0,96525.0,0.00115545]
[1739059272466,1.34653242,96526.0,96525.0,0.00115545]
[1739059274468,1.70733242,96526.0,96525.0,0.00115545]
[1739059275366,1.70733242,96526.0,96525.0,1e-08]
[1739059275979,1.50016242,96526.0,96501.0,0.0304]
[1739059276168,0.9288212,96502.0,96501.0,0.0304]
[1739059276366,1.2161412,96502.0,96501.0,0.0304]
[1739059278675,1.01496,96502.0,96501.0,0.2376233]
[1739059279181,1.02096,96502.0,96501.0,0.2376233]
[1739059279373,1.03128425,96502.0,96501.0,0.2376233]
[1739059279576,1.08166429,96502.0,96501.0,0.2376233]
[1739059280774,1.00418004,96502.0,96501.0,0.2376233]
[1739059280971,1.07138004,96502.0,96501.0,0.2376233]
[1739059281177,1.00418004,96502.0,96501.0,0.2376233]
[1739059281376,1.07142004,96502.0,96501.0,0.2376233]
[1739059281676,1.08559004,96502.0,96501.0,0.2376233]
[1739059283384,1.01835004,96502.0,96501.0,0.2376233]
[1739059283880,0.96797,96502.0,96501.0,0.2376233]
[1739059285481,0.02617,96502.0,96501.0,0.2376233]
[1739059285778,0.00015545,96511.0,96510.0,0.207204]
[1739059287179,0.00915545,96511.0,96510.0,0.208204]
[1739059288186,0.01815545,96511.0,96510.0,0.209204]
[1739059288876,0.01815545,96511.0,96510.0,0.240304]
[1739059296991,5e-08,96511.0,96510.0,0.240304]
[1739059297387,0.2202,96521.0,96520.0,0.2071825]
[1739059298999,0.2292,96521.0,96520.0,0.2081825]
[1739059299497,0.009,96521.0,96520.0,0.2081825]
[1739059299688,0.018,96521.0,96520.0,0.28119723]
[1739059304294,0.018,96521.0,96520.0,0.64199723]
[1739059304491,0.018,96521.0,96520.0,0.6316825]
[1739059304699,0.018,96521.0,96520.0,0.2708825]
[1739059307095,0.018,96521.0,96520.0,0.2396825]
[1739059311812,0.01868,96521.0,96520.0,0.2396825]
[1739059314810,1e-07,96521.0,96520.0,0.2396825]
[1739059319309,1e-07,96521.0,96520.0,0.2386825]
[1739059319609,1e-07,96521.0,96520.0,0.2376825]
[1739059322019,1e-07,96521.0,96520.0,0.2071825]
[1739059322311,0.0050001,96521.0,96520.0,0.2071825]
[1739059322612,0.0380001,96521.0,96520.0,0.2071825]
[1739059322803,0.0330001,96521.0,96520.0,0.2071825]
[1739059323004,0.0380001,96521.0,96520.0,0.2071825]
[1739059323204,0.0420001,96521.0,96520.0,0.2081825]
[1739059324617,0.0090001,96521.0,96520.0,0.2081825]
[1739059325115,0.00155516,96522.0,96520.0,0.2081825]
[1739059325116,6e-08,96522.0,96520.0,0.2081825]
[1739059325513,6e-08,96522.0,96521.0,0.0325]
[1739059327399,0.0332,96535.0,96534.0,0.2071525]
[1739059328607,0.2202,96536.0,96534.0,0.2071525]
[1739059328917,5e-08,96544.0,96543.0,0.2071333]
[1739059329608,5e-08,96544.0,96543.0,0.2391333]
[1739059330416,5e-08,96544.0,96543.0,0.2401333]
[1739059330717,5e-08,96544.0,96543.0,0.2411333]
[1739059330906,5e-08,96544.0,96543.0,0.2515151]
[1739059335908,5e-08,96544.0,96543.0,0.2091333]
[1739059351130,5e-08,96544.0,96543.0,0.20710816]
[1739059355332,0.06700005,96544.0,96543.0,0.20019295]
[1739059358344,0.07746968,96544.0,96543.0,0.20019295]
[1739059358836,0.07754968,96544.0,96543.0,0.20019295]
[1739059359530,0.12792416,96544.0,96543.0,0.20019295]
[1739059359730,0.11745453,96544.0,96543.0,0.20019295]
[1739059360133,0.05037453,96544.0,96543.0,0.20019295]
[1739059362842,5e-08,96544.0,96543.0,0.20019295]
[1739059363935,5e-08,96544.0,96543.0,0.19919295]
[1739059364137,5e-08,96544.0,96543.0,0.20019295]
[1739059364743,5e-08,96544.0,96543.0,0.19919295]
[1739059365240,5e-08,96544.0,96543.0,0.20019295]
[1739059366143,5e-08,96544.0,96543.0,0.19919295]
[1739059368240,5e-08,96544.0,96543.0,0.20019295]
[1739059368647,5e-08,96544.0,96543.0,0.19919295]
[1739059368849,0.36080005,96544.0,96543.0,0.20019295]
[1739059369244,0.36080005,96544.0,96543.0,0.19919295]
[1739059369645,0.36080005,96544.0,96543.0,0.20019295]
[1739059370338,5e-08,96544.0,96543.0,0.20019295]
[1739059370535,5e-08,96544.0,96543.0,0.19919295]
[1739059370735,5e-08,96544.0,96543.0,0.20019295]
[1739059371342,5e-08,96544.0,96543.0,0.19919295]
[1739059371547,5e-08,96544.0,96543.0,0.20019295]
[1739059372045,5e-08,96544.0,96543.0,0.19919295]
[1739059373243,0.03190005,96544.0,96543.0,0.19919295]
[1739059373852,0.03190005,96544.0,96543.0,0.20019295]
[1739059375053,0.04239299,96544.0,96543.0,0.20019295]
[1739059375450,0.09276292,96544.0,96543.0,0.20019295]
[1739059376948,0.08226998,96544.0,96543.0,0.19919295]
[1739059377151,0.08226998,96544.0,96543.0,0.20019295]
[1739059379349,0.03190005,96544.0,96543.0,0.20019295]
[1739059379956,0.03190005,96544.0,96543.0,0.19919295]
[1739059380253,0.03190005,96544.0,96543.0,0.20019295]
[1739059380448,0.03190005,96544.0,96543.0,0.19919295]
[1739059380657,0.03190005,96544.0,96543.0,0.20019295]
[1739059380862,0.39270005,96544.0,96543.0,0.20019295]
[1739059385563,0.62882649,96544.0,96543.0,0.20019295]
[1739059385772,0.83595809,96544.0,96543.0,0.20019295]
[1739059389356,0.74693976,96544.0,96543.0,0.20019295]
[1739059390873,0.81429976,96544.0,96543.0,0.20019295]
[1739059392272,0.71756639,96544.0,96543.0,0.19919295]
[1739059392472,0.71756639,96544.0,96543.0,0.20019295]
[1739059396171,1.07836639,96544.0,96543.0,0.20019295]
[1739059399171,1.17477567,96544.0,96543.0,0.20019295]
[1739059399778,0.45317567,96544.0,96543.0,0.20019295]
[1739059400073,1.17477567,96544.0,96543.0,0.20019295]
[1739059400270,0.45317567,96544.0,96543.0,0.20019295]
[1739059400470,1.17477567,96544.0,96543.0,0.20019295]
[1739059402481,1.07836639,96544.0,96543.0,0.20019295]
[1739059403878,0.71756639,96544.0,96543.0,0.20019295]
[1739059409977,0.81605687,96544.0,96543.0,0.20019295]
[1739059411683,0.81633687,96544.0,96543.0,0.20019295]
[1739059412284,0.45553687,96544.0,96543.0,0.20019295]
[1739059412478,0.81633687,96544.0,96543.0,0.20019295]
[1739059413986,0.57726527,96544.0,96543.0,0.20019295]
[1739059414174,0.50966527,96544.0,96543.0,0.23299295]
[1739059414378,0.57730527,96544.0,96543.0,0.23299295]
[1739059415182,0.57730527,96544.0,96543.0,0.23199295]
[1739059415379,0.50966527,96544.0,96543.0,0.23299295]
[1739059416487,0.50966527,96544.0,96543.0,0.23199295]
[1739059416690,0.50966527,96544.0,96543.0,0.23299295]
[1739059417793,0.36080005,96544.0,96543.0,0.23299295]
[1739059419486,5e-08,96544.0,96543.0,0.23299295]
[1739059420690,5e-08,96544.0,96543.0,0.23199295]
[1739059424890,5e-08,96544.0,96543.0,0.24027295]
[1739059427294,5e-08,96544.0,96543.0,0.60107295]
[1739059428003,0.3608,96557.0,96556.0,0.2071067]
[1739059429198,0.00015536,96566.0,96556.0,0.001]
[1739059429396,0.00015536,96566.0,96565.0,0.2070874]
[1739059430787,0.36095536,96566.0,96565.0,0.2080874]
[1739059431402,0.00015536,96566.0,96565.0,0.2080874]
[1739059431698,0.00015536,96566.0,96565.0,0.2090874]
[1739059434708,0.00015536,96566.0,96565.0,0.2244274]
[1739059437502,0.00015536,96566.0,96565.0,0.2327074]
[1739059442096,0.00015536,96566.0,96565.0,0.2741274]
[1739059443708,0.06265536,96566.0,96565.0,0.2741274]
[1739059444002,0.09555536,96566.0,96565.0,0.2741274]
[1739059445505,0.09555536,96566.0,96565.0,0.3466174]
[1739059446820,0.45635536,96566.0,96565.0,0.3466174]
[1739059452716,0.45635536,96566.0,96565.0,0.3383374]
[1739059453115,0.09555536,96566.0,96565.0,0.3383374]
[1739059453416,0.45635536,96566.0,96565.0,0.3383374]
[1739059454117,0.09555536,96566.0,96565.0,0.3383374]
[1739059454309,0.45635536,96566.0,96565.0,0.3383374]
[1739059454708,0.09555536,96566.0,96565.0,0.3383374]
[1739059454911,0.45635536,96566.0,96565.0,0.3383374]
[1739059455105,0.09555536,96566.0,96565.0,0.3383374]
[1739059455310,0.45635536,96566.0,96565.0,0.3383374]
[1739059458213,0.71380209,96566.0,96565.0,0.3383374]
[1739059461218,0.50671629,96566.0,96565.0,0.3383374]
[1739059463819,0.14591629,96566.0,96565.0,0.3383374]
[1739059464323,0.50671629,96566.0,96565.0,0.3383374]
[1739059465922,0.50671629,96566.0,96565.0,0.3373374]
[1739059466118,0.50671629,96566.0,96565.0,0.3383374]
[1739059470714,0.50671629,96566.0,96565.0,0.3373374]
[1739059471029,0.50671629,96566.0,96565.0,0.3383374]
[1739059473828,0.57403629,96566.0,96565.0,0.3383374]
[1739059474429,0.93483629,96566.0,96565.0,0.3383374]
[1739059475026,1.07702229,96566.0,96565.0,0.3383374]
[1739059476127,0.86993629,96566.0,96565.0,0.3383374]
[1739059478634,0.50913629,96566.0,96565.0,0.3383374]
[1739059481826,0.71622229,96566.0,96565.0,0.13125]
[1739059485138,1.01622229,96566.0,96565.0,0.02380383]
[1739059485329,1.01622229,96566.0,96565.0,0.002]
[1739059485726,1.01622229,96566.0,96556.0,0.00015536]
[1739059485727,0.2071053,96557.0,96556.0,0.00015536]
[1739059485933,0.2071375,96542.0,96541.0,0.18580476]
[1739059486232,0.6352175,96542.0,96541.0,0.18580476]
[1739059487536,0.6352175,96542.0,96541.0,0.18780476]
[1739059487937,0.9352175,96542.0,96541.0,0.18780476]
[1739059488141,0.9352175,96542.0,96541.0,0.05826556]
[1739059488330,0.9352175,96542.0,96541.0,0.03750865]
[1739059488531,0.2071462,96538.0,96537.0,0.02467239]
[1739059488736,0.5679462,96538.0,96537.0,0.02467239]
[1739059488938,0.2071548,96534.0,96532.0,0.00015536]
[1739059490444,0.2151548,96534.0,96532.0,0.00115536]
[1739059493948,0.77196093,96533.0,96532.0,0.00115536]
[1739059495050,0.77196093,96533.0,96532.0,0.00015536]
[1739059495245,0.78096093,96533.0,96532.0,0.00115536]
[1739059495440,0.84928093,96533.0,96532.0,0.00115536]
[1739059496247,0.78096093,96533.0,96532.0,0.00115536]
[1739059496438,0.79892,96533.0,96532.0,0.00115536]
[1739059496644,0.7306,96533.0,96532.0,0.20831296]
[1739059496947,0.79896,96533.0,96532.0,0.21659296]
[1739059500552,0.7306,96533.0,96532.0,0.21659296]
[1739059500752,0.79888,96533.0,96532.0,0.21659296]
[1739059505649,0.7306,96533.0,96532.0,0.21659296]
[1739059505849,0.79884,96533.0,96532.0,0.21659296]
[1739059506650,0.7306,96533.0,96532.0,0.21659296]
[1739059506842,0.43804,96533.0,96532.0,0.21659296]
[1739059508458,0.3698,96533.0,96532.0,0.22487296]
[1739059510154,0.009,96533.0,96532.0,0.22487296]
[1739059512448,0.009,96533.0,96532.0,0.22862296]
[1739059512653,0.3608,96542.0,96541.0,0.2071384]
[1739059515163,0.3608,96542.0,96541.0,0.2081384]
[1739059515462,0.3618,96542.0,96541.0,0.2081384]
[1739059515968,0.3608,96542.0,96541.0,0.2081384]
[1739059517269,0.3608,96542.0,96541.0,0.2164184]
[1739059518359,0.3608,96542.0,96541.0,0.2154184]
[1739059518661,0.3608,96542.0,96541.0,0.2164184]
[1739059522661,0.3608,96542.0,96541.0,0.2081384]
[1739059522857,0.41117486,96542.0,96541.0,0.2081384]
[1739059523256,0.05037486,96542.0,96541.0,0.2081384]
[1739059523465,0.41117486,96542.0,96541.0,0.2081384]
[1739059524075,0.05037486,96542.0,96541.0,0.2081384]
[1739059524569,0.41117486,96542.0,96541.0,0.2081384]
[1739059525272,0.05037486,96542.0,96541.0,0.2081384]
[1739059525474,0.41117486,96542.0,96541.0,0.2081384]
[1739059526172,0.05037486,96542.0,96541.0,0.2081384]
[1739059526668,0.41117486,96542.0,96541.0,0.2081384]
[1739059527872,0.41117486,96542.0,96541.0,0.001]
[1739059528861,0.41117486,96542.0,96532.0,0.00390536]
[1739059528862,0.2071555,96533.0,96532.0,0.00390536]
[1739059529070,0.6363155,96533.0,96532.0,0.00390536]
[1739059529665,0.9971155,96533.0,96532.0,0.00390536]
[1739059529866,0.2071794,96522.0,96516.0,0.2071915]
[1739059530069,0.7216,96517.0,96516.0,0.2071915]
[1739059531475,0.7216,96517.0,96516.0,0.2101915]
[1739059532377,0.7216,96517.0,96516.0,0.2121915]
[1739059532976,0.3608,96517.0,96516.0,0.212192]
[1739059534880,0.41117486,96517.0,96516.0,0.212192]
[1739059535063,0.05037486,96517.0,96516.0,0.212192]
[1739059537673,0.05037486,96517.0,96516.0,0.220472]
[1739059537885,0.05037486,96517.0,96516.0,0.261912]
[1739059539381,0.3608,96527.0,96526.0,0.2071706]
[1739059540081,0.3608,96527.0,96526.0,0.2154506]
[1739059541477,0.3608,96527.0,96526.0,0.4333506]
[1739059542078,0.42936,96529.0,96528.0,0.2071663]
[1739059546973,0.06856,96529.0,96528.0,0.2071663]
[1739059547177,0.42936,96529.0,96528.0,0.2071663]
[1739059548481,0.06856,96529.0,96528.0,0.2071663]
[1739059548882,0.42936,96529.0,96528.0,0.2071663]
[1739059549582,0.06856,96529.0,96528.0,0.2071663]
[1739059549790,0.42936,96529.0,96528.0,0.2071663]
[1739059550484,0.11893962,96529.0,96528.0,0.2071663]
[1739059550689,0.47973962,96529.0,96528.0,0.2071663]
[1739059551187,0.11893962,96529.0,96528.0,0.2071663]
[1739059551378,0.47973962,96529.0,96528.0,0.2071663]
[1739059552582,0.11893962,96529.0,96528.0,0.2071663]
[1739059552782,0.47973962,96529.0,96528.0,0.2071663]
[1739059553188,0.11893962,96529.0,96528.0,0.2071663]
[1739059553388,0.11893962,96529.0,96528.0,0.4250663]
[1739059553779,0.47973962,96529.0,96528.0,0.4250663]
[1739059556479,0.47973962,96529.0,96528.0,0.4664963]
[1739059557076,0.68690382,96529.0,96528.0,0.4664963]
[1739059559386,0.68690382,96529.0,96528.0,0.2485963]
[1739059559988,0.47973962,96529.0,96528.0,0.2485963]
[1739059561389,0.41117962,96529.0,96528.0,0.2485963]
[1739059561593,0.47937962,96529.0,96528.0,0.2485963]
[1739059565284,0.47937962,96529.0,96528.0,0.4664963]
[1739059568899,0.47937962,96529.0,96528.0,0.4923863]
[1739059569990,0.11857962,96529.0,96528.0,0.4923863]
[1739059570195,0.47937962,96529.0,96528.0,0.4923863]
[1739059573205,0.47937962,96529.0,96528.0,0.5006663]
[1739059577201,0.68654382,96529.0,96528.0,0.2935]
[1739059577403,0.71794382,96529.0,96528.0,0.26761]
[1739059579903,1.07874382,96529.0,96528.0,0.26761]
[1739059580490,0.77197962,96529.0,96528.0,0.4747764]
[1739059580696,0.83981962,96529.0,96528.0,0.4747764]
[1739059583703,0.94424757,96529.0,96528.0,0.4747764]
[1739059585007,1.15141177,96529.0,96528.0,0.4747764]
[1739059587210,1.15141177,96529.0,96528.0,0.26761]
[1739059587409,1.15141177,96529.0,96528.0,0.25861]
[1739059587613,1.15141177,96529.0,96528.0,0.00828]
[1739059587809,1.04698382,96529.0,96528.0,0.00828]
[1739059588497,0.2072091,96508.0,96501.0,0.2179]
[1739059588704,0.9965291,96508.0,96501.0,0.4251223]
[1739059589012,0.9965291,96508.0,96502.0,0.2072214]
[1739059589397,0.78932,96508.0,96504.0,0.2072158]
[1739059589602,0.78932,96508.0,96507.0,0.00215536]
[1739059590106,0.78932,96508.0,96507.0,0.21236656]
[1739059591806,0.79960399,96508.0,96507.0,0.21236656]
[1739059592006,0.84998361,96508.0,96507.0,0.21236656]
[1739059595613,0.83969962,96508.0,96507.0,0.21236656]
[1739059595809,0.77197962,96508.0,96507.0,0.21236656]
[1739059596005,0.83957962,96508.0,96507.0,0.21236656]
[1739059598011,0.83957962,96508.0,96507.0,0.43026656]
[1739059598518,0.77197962,96508.0,96507.0,0.43026656]
[1739059598909,0.47877962,96508.0,96507.0,0.43026656]
[1739059599417,0.11797962,96508.0,96507.0,0.43026656]
[1739059599717,0.0676,96508.0,96507.0,0.43026656]
[1739059604618,0.0676,96508.0,96507.0,0.45616656]
[1739059605021,0.0676,96508.0,96507.0,0.46444656]
[1739059613725,0.4284,96508.0,96507.0,0.46444656]
[1739059613926,0.47878946,96508.0,96507.0,0.46444656]
[1739059614833,0.41118946,96508.0,96507.0,0.46444656]
[1739059615023,0.47890946,96508.0,96507.0,0.46444656]
[1739059615223,0.11810946,96508.0,96507.0,0.46444656]
[1739059615430,0.11810946,96508.0,96507.0,0.46144656]
[1739059615621,0.11810946,96508.0,96507.0,0.46544656]
[1739059617630,0.11810946,96508.0,96507.0,0.46444656]
[1739059618830,0.11810946,96508.0,96507.0,0.50588656]
[1739059619925,0.47890946,96508.0,96507.0,0.50588656]
[1739059621727,0.05038946,96508.0,96507.0,0.50588656]
[1739059622936,0.05038946,96508.0,96507.0,0.51416656]
[1739059629239,0.05038946,96512.0,96511.0,0.2072028]
[1739059630439,0.05038946,96512.0,96511.0,0.2082028]
[1739059631042,0.05038946,96512.0,96511.0,0.2092028]
[1739059631947,0.05038946,96512.0,96511.0,0.2506428]
[1739059633248,0.05038946,96512.0,96511.0,0.2589228]
[1739059633446,0.41118946,96512.0,96511.0,0.2589228]
[1739059633750,0.41118946,96512.0,96511.0,0.4768228]
[1739059634246,0.41118946,96512.0,96511.0,0.4851028]
[1739059634646,0.05038946,96512.0,96511.0,0.4851028]
[1739059634848,0.41118946,96512.0,96511.0,0.4851028]
[1739059638048,0.59659391,96512.0,96511.0,0.4851028]
[1739059639359,0.60709948,96512.0,96511.0,0.4851028]
[1739059640359,0.59659391,96512.0,96511.0,0.4851028]
[1739059642357,0.41118946,96512.0,96511.0,0.4851028]
[1739059644556,0.05038946,96512.0,96511.0,0.4851028]
[1739059644750,0.06939446,96528.0,96527.0,0.2071684]
[1739059644949,0.06939446,96528.0,96518.0,0.0517967]
[1739059644950,0.0302,96539.0,96523.0,0.3608]
[1739059645150,0.06796,96542.0,96534.0,0.2071534]
[1739059646056,0.06796,96542.0,96534.0,0.2660434]
[1739059646260,0.24842258,96544.0,96534.0,0.2660434]
[1739059646848,0.22021862,96535.0,96534.0,0.2670434]
[1739059647054,0.22021862,96535.0,96534.0,0.8524434]
[1739059647254,0.24842258,96544.0,96543.0,0.2071341]
[1739059647458,0.00015536,96544.0,96543.0,1.1533341]
[1739059648659,0.00315536,96544.0,96543.0,1.1543341]
[1739059650964,0.00315536,96544.0,96543.0,1.1957641]
[1739059651861,0.00315536,96544.0,96543.0,0.8349641]
[1739059657262,0.00315536,96544.0,96543.0,0.4674641]
[1739059664876,0.00315536,96544.0,96543.0,0.4757441]
[1739059668075,0.00315536,96544.0,96543.0,0.4840241]
[1739059672780,0.0332,96555.0,96554.0,0.2071109]
[1739059673971,0.0332,96555.0,96554.0,0.2081109]
[1739059674373,0.0332,96555.0,96554.0,0.2091109]
[1739059675176,0.0332,96555.0,96554.0,0.4270109]
[1739059676377,0.06792,96559.0,96554.0,0.4270109]
[1739059676378,0.3608,96561.0,96554.0,0.2199]
[1739059676583,0.3608,96561.0,96560.0,0.207098]
[1739059678086,0.3608,96561.0,96560.0,0.208098]
[1739059679985,0.3608,96561.0,96560.0,0.207098]
[1739059681185,0.3608,96561.0,96560.0,0.424998]
[1739059681780,0.411161,96561.0,96560.0,0.424998]
[1739059682181,0.411161,96561.0,96560.0,0.450888]
[1739059682582,0.411161,96561.0,96560.0,0.492308]
[1739059683684,0.411161,96561.0,96560.0,0.493308]
[1739059684286,0.411161,96561.0,96560.0,0.492308]
[1739059685087,0.050361,96561.0,96560.0,0.492308]
[1739059686093,0.00015536,96564.0,96562.0,0.2070938]
[1739059686281,0.00015536,96564.0,96563.0,0.2482]
[1739059687287,0.00015536,96564.0,96563.0,0.25648]
[1739059687896,0.00015536,96564.0,96563.0,0.61728]
[1739059689888,0.00015536,96564.0,96563.0,0.61828]
[1739059690794,0.06796,96578.0,96577.0,0.2070616]
[1739059691197,0.06796,96578.0,96577.0,0.4249616]
[1739059692492,0.36235361,96581.0,96580.0,0.2070552]
[1739059693693,0.36235361,96581.0,96580.0,0.2080552]
[1739059693898,0.36235361,96581.0,96580.0,0.2090552]
[1739059695995,0.36235361,96581.0,96580.0,0.4269552]
[1739059697197,0.00155361,96581.0,96580.0,0.4269552]
[1739059699403,0.03205361,96581.0,96580.0,0.4269552]
[1739059699597,0.03205361,96581.0,96580.0,0.4352352]
[1739059699906,0.03205361,96581.0,96580.0,0.4435152]
[1739059700503,0.06505361,96581.0,96580.0,0.4435152]
[1739059701213,0.06505361,96581.0,96580.0,0.4849252]
[1739059702109,0.00155361,96581.0,96580.0,0.4849252]
[1739059717025,0.032,96582.0,96580.0,0.4849252]
[1739059718130,0.032,96582.0,96581.0,0.2070524]
[1739059719517,0.032,96582.0,96581.0,0.2080524]
[1739059719723,0.032,96582.0,96581.0,0.4259524]
[1739059721021,0.032,96582.0,96581.0,0.4269524]
[1739059721325,0.032,96582.0,96581.0,0.2199]
[1739059721523,0.032,96582.0,96571.0,0.06485579]
[1739059721730,0.3608,96572.0,96571.0,0.06485579]
[1739059721927,0.4288,96572.0,96569.0,0.215356]
[1739059722230,0.0634,96571.0,96569.0,0.215356]
[1739059723024,0.2704746,96571.0,96569.0,0.208076]
[1739059723226,0.2704746,96571.0,96569.0,0.001]
[1739059723435,0.2070824,96567.0,96566.0,0.2179]
[1739059723728,0.5678824,96567.0,96566.0,0.2179]
[1739059725728,0.5708824,96567.0,96566.0,0.2199]
[1739059727823,0.5708824,96567.0,96566.0,0.26132]
[1739059728527,0.62124239,96567.0,96566.0,0.26132]
[1739059728723,0.62124239,96567.0,96566.0,0.04342]
[1739059729728,0.63155037,96567.0,96566.0,0.04342]
[1739059730624,0.99235037,96567.0,96566.0,0.04342]
[1739059732328,0.78526797,96567.0,96566.0,0.04342]
[1739059735438,0.85318797,96567.0,96566.0,0.04342]
[1739059738241,0.77495999,96567.0,96566.0,0.04342]
[1739059738438,0.84279999,96567.0,96566.0,0.04342]
[1739059738839,0.48199999,96567.0,96566.0,0.04342]
[1739059739541,0.43164,96567.0,96566.0,0.04342]
[1739059740343,0.3638,96567.0,96566.0,0.04342]
[1739059740649,0.4316,96567.0,96566.0,0.26132]
[1739059740938,0.003,96567.0,96566.0,0.26132]
[1739059744548,0.003,96567.0,96566.0,0.62882]
[1739059753242,0.003,96567.0,96566.0,0.6371]
[1739059755342,0.003,96567.0,96566.0,0.2696]
[1739059755747,0.3608,96569.0,96566.0,0.2686]
[1739059756053,0.002,96567.0,96566.0,0.4756846]
[1739059756847,0.002,96567.0,96566.0,0.4746846]
[1739059757043,0.002,96567.0,96566.0,0.4756846]
[1739059757845,0.3608,96569.0,96566.0,0.2686]
[1739059758048,0.3628,96569.0,96568.0,0.2070803]
[1739059758444,0.3608,96569.0,96568.0,0.2070803]
[1739059759140,0.3628,96569.0,96568.0,0.2070803]
[1739059759544,0.3608,96569.0,96568.0,0.2070803]
[1739059759743,0.3628,96569.0,96568.0,0.2070803]
[1739059760451,0.3628,96569.0,96568.0,0.2080803]
[1739059761151,0.3608,96569.0,96568.0,0.2080803]
[1739059761349,0.3608,96569.0,96568.0,0.4259803]
[1739059761350,0.3628,96569.0,96568.0,0.4259803]
[1739059763048,0.3628,96569.0,96568.0,0.4249803]
[1739059763254,0.3628,96569.0,96568.0,0.4259803]
[1739059763759,0.3628,96569.0,96568.0,0.4249803]
[1739059763961,0.3628,96569.0,96568.0,0.4259803]